bitfinex/quotes_ETHUSD_20260120
["timestamp","ask_amount","ask_price","bid_price","bid_amount"]
[1768902135220,12.89504486,3093.9,3093.3,12.13010366]
[1768902135614,12.89504486,3094.2,3093.3,12.13010366]
[1768902136313,16.12697432,3094.2,3093.3,12.13010366]
[1768902136519,12.89504486,3094.1,3093.3,13.34331403]
[1768902136718,12.89504486,3094.1,3093.3,12.13010366]
[1768902137802,12.89504486,3094.1,3093.3,0.002]
[1768902137803,12.89504486,3093.9,3093.3,0.002]
[1768902138508,12.89504486,3093.8,3093.3,0.002]
[1768902140602,12.89504486,3093.7,3093.3,0.002]
[1768902141246,3.23231477,3093.8,3092.8,5.16707709]
[1768902141247,12.89504486,3093.5,3092.8,5.16707709]
[1768902143048,12.89504486,3093.4,3092.8,5.16707709]
[1768902143213,12.89504486,3093.4,3093.3,0.002]
[1768902143531,12.89504486,3093.4,3093.0,0.53]
[1768902143699,13.83495839,3093.4,3093.0,0.53]
[1768902144426,0.531,3094.0,3093.0,0.53]
[1768902144427,12.27102732,3094.2,3093.1,5.24683415]
[1768902144999,3.23174869,3094.3,3093.2,5.24683415]
[1768902145000,12.27102732,3094.3,3093.2,5.24683415]
[1768902145437,0.0008,3094.4,3093.2,5.27916312]
[1768902146025,12.27182732,3094.4,3093.2,5.27916312]
[1768902146329,0.0008,3094.4,3093.4,5.24683415]
[1768902146547,0.0008,3094.4,3093.6,5.24683415]
[1768902146750,12.27102732,3095.1,3094.5,5.24603415]
[1768902147048,12.27102732,3095.1,3094.6,5.77503415]
[1768902147835,12.27182732,3095.4,3094.6,5.77503415]
[1768902148130,12.27102732,3095.3,3094.6,5.77503415]
[1768902148633,12.27102732,3095.3,3094.3,0.00080008]
[1768902148832,12.27102732,3095.3,3094.4,0.53]
[1768902149132,12.27102732,3095.3,3094.4,5.77503415]
[1768902149708,12.27102732,3095.3,3094.4,3.76161588]
[1768902149913,0.0008,3095.4,3094.5,5.62127575]
[1768902151021,0.0008,3095.4,3094.7,5.24503415]
[1768902151350,0.0008,3095.4,3094.9,5.24503415]
[1768902151932,0.0008,3095.4,3095.0,0.53]
[1768902151933,12.27102732,3095.3,3095.0,0.53]
[1768902152739,12.27102732,3095.3,3095.0,1e-08]
[1768902153545,12.27102732,3095.3,3094.4,5.24503415]
[1768902153840,12.27102732,3095.2,3094.5,0.53]
[1768902154022,12.27102732,3095.2,3094.6,0.53]
[1768902155942,0.001,3094.9,3094.6,0.53]
[1768902156142,12.27102732,3094.8,3094.6,0.53]
[1768902156839,0.001,3094.9,3094.6,0.53]
[1768902157428,12.27202732,3094.9,3094.6,0.53]
[1768902162630,12.27202732,3094.9,3094.3,5.24503415]
[1768902162945,12.27202732,3094.9,3094.7,0.53]
[1768902168054,12.37062612,3095.2,3094.7,0.53]
[1768902169159,12.37062612,3095.2,3094.7,5.77403415]
[1768902170954,12.37142612,3095.4,3094.7,5.77403415]
[1768902172353,0.0008,3095.4,3094.8,5.24403415]
[1768902174866,11.85681218,3095.4,3094.8,5.24403415]
[1768902175074,11.85681218,3095.4,3094.6,5.24403415]
[1768902175256,11.85681218,3095.4,3094.8,5.24403415]
[1768902176865,11.85681218,3095.4,3094.5,0.002]
[1768902177073,11.85681218,3095.4,3094.6,0.53]
[1768902177846,11.85681218,3095.4,3094.6,5.77403415]
[1768902179756,11.85601218,3095.2,3094.5,0.002]
[1768902179923,11.85601218,3094.9,3094.6,0.53]
[1768902180062,11.85601218,3094.5,3094.1,3.8]
[1768902180269,11.85601218,3094.5,3094.2,0.53]
[1768902180673,11.85601218,3094.5,3093.4,9.00665084]
[1768902180882,11.85601218,3094.5,3093.5,6.30403415]
[1768902181121,11.85601218,3094.5,3093.6,5.77403415]
[1768902181480,11.85601218,3094.5,3093.7,5.77403415]
[1768902182087,11.85601218,3094.3,3093.8,0.53]
[1768902182290,11.85601218,3094.3,3093.9,0.53]
[1768902185518,3.23174897,3094.3,3093.9,0.53]
[1768902185693,11.85601218,3094.2,3093.9,0.53]
[1768902187100,11.85601218,3094.2,3093.4,5.77403415]
[1768902187427,11.85601218,3094.2,3093.3,0.002]
[1768902187590,15.08791198,3094.2,3093.4,0.53]
[1768902187796,11.85601218,3094.1,3093.4,0.53]
[1768902188234,11.85601218,3094.1,3093.4,6.30403415]
[1768902191336,11.85601218,3094.1,3093.4,5.77403415]
[1768902191632,11.85601218,3094.1,3093.5,0.53]
[1768902191815,11.85601218,3094.1,3093.7,0.002]
[1768902192146,11.85601218,3094.5,3093.5,6.30403415]
[1768902192310,11.85601218,3094.5,3093.5,5.77403415]
[1768902192504,11.85601218,3094.5,3093.6,0.53]
[1768902192719,11.85601218,3094.3,3093.6,0.53]
[1768902192934,11.85601218,3094.3,3093.7,0.53]
[1768902193100,11.85601218,3094.0,3093.4,0.002]
[1768902193303,11.85601218,3094.0,3093.5,0.53]
[1768902197259,11.85601218,3093.9,3093.6,1e-08]
[1768902197562,11.85601218,3093.9,3093.7,1e-08]
[1768902197710,11.85601218,3093.9,3093.4,0.002]
[1768902197911,11.85601218,3093.5,3093.0,0.0016]
[1768902198325,11.85601218,3093.5,3093.1,0.53]
[1768902199035,11.85601218,3093.5,3093.0,0.0016]
[1768902199211,11.85601218,3093.5,3093.1,0.53]
[1768902200437,11.85601218,3093.4,3093.1,0.53]
[1768902200642,11.85601218,3093.4,3093.1,0.49827569]
[1768902201219,11.85601218,3093.4,3093.0,0.0016]
[1768902201423,11.85601218,3093.4,3093.1,0.53]
[1768902204841,11.85601218,3093.4,3093.0,0.0036]
[1768902205154,11.85601218,3093.4,3093.1,0.53]
[1768902205849,11.85601218,3093.4,3093.1,0.40609285]
[1768902206147,11.85601218,3093.4,3093.1,0.28217248]
[1768902206335,11.85601218,3093.4,3093.1,0.196377]
[1768902206537,11.85601218,3093.4,3093.1,0.12964464]
[1768902206847,11.85601218,3093.4,3093.2,0.53]
[1768902207050,11.9696296,3093.3,3093.0,0.0036]
[1768902207213,11.9696296,3093.3,3092.8,5.77603415]
[1768902207214,11.9696296,3093.3,3092.9,0.53]
[1768902208223,11.96602962,3093.2,3092.9,0.53]
[1768902208545,11.96602962,3093.2,3092.5,0.532]
[1768902208751,11.99097805,3092.9,3092.5,5.77603415]
[1768902209122,0.02494843,3092.9,3092.5,5.77603415]
[1768902210128,0.02494843,3092.9,3092.5,6.40663757]
[1768902213028,11.99097805,3092.9,3092.5,0.002]
[1768902213231,0.02494843,3092.9,3092.5,5.77603415]
[1768902213941,11.96682962,3093.4,3092.6,5.77403415]
[1768902214446,0.0008,3093.4,3092.6,5.77403415]
[1768902214761,5.52253334,3094.4,3092.5,6.46924481]
[1768902214762,11.96602962,3094.2,3093.3,0.00080008]
[1768902215060,3.23158073,3094.5,3093.5,5.77243415]
[1768902215061,11.96602962,3094.5,3093.5,5.77243415]
[1768902215653,0.129,3095.8,3093.3,0.00080008]
[1768902215654,11.96602962,3094.4,3093.7,5.77243415]
[1768902216939,0.001,3093.9,3093.7,5.77243415]
[1768902219431,0.001,3093.9,3093.8,0.53]
[1768902226966,0.001,3093.9,3093.8,6.30243415]
[1768902229378,11.96425801,3094.7,3093.8,6.93287757]
[1768902229547,11.96425801,3094.7,3093.8,6.30243415]
[1768902231467,11.96425801,3094.6,3093.8,6.30243415]
[1768902232668,11.96425801,3094.8,3093.9,5.77243415]
[1768902234097,12.22722098,3095.1,3094.0,5.77243415]
[1768902234306,12.22722098,3095.1,3094.2,5.77243415]
[1768902234509,12.22722098,3095.1,3094.4,5.77243415]
[1768902234998,0.001,3095.1,3094.4,5.77243415]
[1768902235376,0.0008,3095.4,3094.4,5.77143415]
[1768902235558,0.0008,3095.4,3094.6,5.77143415]
[1768902235758,0.0008,3095.4,3094.8,5.77143415]
[1768902240880,0.001,3095.1,3094.8,5.77143415]
[1768902242570,12.22722098,3095.1,3094.2,5.77143415]
[1768902242904,12.22722098,3095.1,3094.4,5.77143415]
[1768902243265,12.22722098,3095.1,3094.0,5.77143415]
[1768902243506,12.22722098,3095.1,3094.1,6.30143415]
[1768902243677,12.22722098,3095.1,3094.2,6.30143415]
[1768902244406,3.23191911,3095.1,3094.2,6.30143415]
[1768902244594,12.22622098,3095.0,3094.2,6.30143415]
[1768902248006,12.22622098,3094.9,3094.3,0.53]
[1768902250615,12.22622098,3094.9,3094.3,6.30143415]
[1768902252075,12.22622098,3094.9,3094.1,5.77143415]
[1768902252280,12.22622098,3094.9,3094.2,0.53]
[1768902252281,12.22622098,3094.8,3094.2,0.53]
[1768902252510,12.22622098,3094.8,3094.5,0.002]
[1768902252819,12.22622098,3094.6,3094.1,0.532]
[1768902253020,12.22622098,3094.6,3094.1,0.002]
[1768902253320,12.22622098,3094.6,3094.1,0.532]
[1768902255049,12.22622098,3094.5,3094.1,0.532]
[1768902256816,12.22622098,3094.5,3094.1,0.532]
[1768902257714,12.22622098,3094.5,3094.1,0.002]
[1768902260550,12.22622098,3094.4,3094.1,0.002]
[1768902260724,12.22622098,3094.4,3094.0,0.53]
[1768902265224,11.78637667,3095.0,3094.1,5.77043415]
[1768902267046,15.01740954,3095.0,3094.1,5.77043415]
[1768902267250,15.01740954,3095.0,3094.1,6.40047757]
[1768902267466,11.78637667,3094.9,3094.1,6.40047757]
[1768902269268,11.78637667,3094.8,3093.9,5.77043415]
[1768902269436,11.78637667,3094.8,3094.0,0.53]
[1768902270151,11.78637667,3094.7,3094.0,6.30043415]
[1768902271778,11.78637667,3094.6,3094.0,0.53]
[1768902272274,11.78637667,3094.6,3094.1,0.53]
[1768902273706,11.78637667,3094.6,3094.0,5.77203415]
[1768902273978,11.78637667,3094.6,3094.1,0.53]
[1768902275186,11.78637667,3094.6,3094.0,0.0016]
[1768902275385,11.78637667,3094.6,3094.1,0.53]
[1768902275898,11.78637667,3094.6,3094.1,6.30043415]
[1768902276596,11.78637667,3094.8,3094.1,6.93063757]
[1768902276971,15.01745049,3095.0,3094.2,5.76943415]
[1768902277171,11.78637667,3094.9,3094.2,5.76943415]
[1768902277798,3.23107382,3095.0,3094.2,5.76943415]
[1768902277991,15.01745049,3095.0,3094.2,5.76943415]
[1768902278711,11.78637667,3095.0,3094.2,5.76943415]
[1768902278865,11.78737667,3095.1,3094.2,5.76943415]
[1768902280905,11.78637667,3095.0,3094.2,5.76943415]
[1768902286262,12.06565344,3094.9,3094.0,5.77103415]
[1768902286385,12.06565344,3094.7,3094.3,1e-08]
[1768902286891,12.06565344,3094.7,3094.1,0.53]
[1768902287097,12.06565344,3094.7,3094.0,0.0016]
[1768902287302,12.06565344,3094.7,3094.1,0.53]
[1768902287511,12.06565344,3094.5,3094.1,0.53]
[1768902289192,12.06565344,3094.5,3094.3,0.002]
[1768902289395,12.06565344,3094.5,3094.1,0.53]
[1768902291182,0.001,3094.6,3094.1,6.29943415]
[1768902295316,11.88792425,3094.6,3094.1,0.53]
[1768902296106,11.88792425,3094.6,3094.0,0.0036]
[1768902296307,11.88792425,3094.6,3094.1,0.53]
[1768902298121,11.88792425,3094.6,3094.1,6.29943415]
[1768902298483,0.001,3094.6,3094.1,6.29943415]
[1768902300426,0.001,3095.1,3094.2,5.76943415]
[1768902300613,11.88792425,3095.1,3094.4,5.76943415]
[1768902300818,0.001,3095.1,3094.6,5.76943415]
[1768902301423,11.88792425,3095.1,3094.6,5.76943415]
[1768902301615,11.88692425,3095.0,3094.4,0.53]
[1768902301811,11.88692425,3094.5,3094.0,0.0036]
[1768902302121,11.88692425,3094.5,3094.1,0.53]
[1768902302295,11.88692425,3094.5,3094.2,0.53]
[1768902302493,11.88692425,3094.5,3094.0,0.0036]
[1768902302723,11.88692425,3094.5,3094.1,0.53]
[1768902302924,11.88692425,3094.5,3094.0,0.0036]
[1768902304715,11.88692425,3094.5,3094.0,0.5336]
[1768902310063,11.88692425,3094.5,3094.0,6.30303415]
[1768902310200,0.08338515,3094.6,3094.0,6.30303415]
[1768902310403,0.08338515,3094.6,3094.1,5.76943415]
[1768902310599,0.001,3095.1,3094.1,5.686049]
[1768902310807,11.88692425,3095.0,3094.2,1.17409625]
[1768902311053,3.23191337,3095.1,3094.0,0.5336]
[1768902311054,11.88692425,3094.8,3094.3,0.53]
[1768902311940,11.88692425,3094.8,3094.1,0.53]
[1768902313441,11.88692425,3094.7,3094.1,0.53]
[1768902314032,11.88692425,3094.7,3094.3,0.002]
[1768902318544,11.88692425,3094.7,3094.3,5.688049]
[1768902320353,11.88692425,3094.7,3094.3,0.002]
[1768902320557,11.88692425,3094.6,3094.2,0.53]
[1768902325163,12.86328082,3094.5,3094.0,0.5336]
[1768902325759,0.001,3094.4,3094.0,6.219649]
[1768902325958,0.001,3094.4,3094.0,6.8416139]
[1768902326124,12.86328082,3095.0,3094.1,5.685049]
[1768902326654,12.86328082,3095.0,3094.2,0.53]
[1768902328176,12.86328082,3094.9,3094.2,0.53]
[1768902328331,12.86328082,3094.9,3094.2,6.215049]
[1768902331752,12.86328082,3094.8,3094.0,5.688649]
[1768902331954,12.86328082,3094.7,3094.1,0.53]
[1768902332169,12.86328082,3094.7,3094.2,0.53]
[1768902334495,3.23134627,3094.7,3094.0,0.0036]
[1768902334702,13.39328081,3094.3,3094.2,0.53]
[1768902335385,13.39328081,3094.3,3094.0,0.0036]
[1768902335595,13.39328081,3094.3,3094.2,0.53]
[1768902335799,10.04628081,3094.3,3094.2,0.53]
[1768902335979,12.86328082,3094.7,3094.2,9.03204901]
[1768902336890,12.86328082,3094.7,3094.2,0.53]
[1768902338100,0.001,3094.4,3094.2,9.03204901]
[1768902338399,0.001,3094.4,3094.2,9.93561391]
[1768902340372,0.001,3094.4,3094.2,9.03204901]
[1768902342511,12.86428082,3094.4,3094.0,0.0036]
[1768902342713,12.86508082,3094.4,3094.0,0.53]
[1768902345091,12.86508082,3094.4,3094.0,9.03204901]
[1768902347419,0.0018,3094.4,3094.0,9.03204901]
[1768902347627,0.0018,3094.4,3094.2,8.50204901]
[1768902347992,0.0008,3094.7,3094.2,8.50204901]
[1768902350736,0.0008,3094.7,3094.4,8.50204901]
[1768902352740,11.90157135,3094.7,3094.3,0.002]
[1768902352896,11.90157135,3094.7,3094.3,8.50404901]
[1768902354898,0.0008,3094.7,3094.3,8.50404901]
[1768902355236,0.0008,3094.7,3094.3,9.4447744]
[1768902356425,12.4487689,3094.7,3094.3,0.94272539]
[1768902356936,12.4487689,3094.7,3094.3,0.002]
[1768902359136,12.9797689,3094.7,3094.3,0.002]
[1768902362024,12.4479689,3094.6,3094.0,0.002]
[1768902362928,12.4479689,3094.6,3094.0,8.50404901]
[1768902363153,12.4479689,3094.6,3094.1,9.35245391]
[1768902363317,0.001,3094.4,3094.1,9.35245391]
[1768902363640,0.001,3094.4,3094.1,0.8504049]
[1768902363946,12.4489689,3094.4,3094.1,0.8504049]
[1768902364114,12.4489689,3094.4,3094.0,0.002]
[1768902365050,0.001,3094.4,3094.0,8.50404901]
[1768902365265,0.5318,3094.7,3094.1,8.50104901]
[1768902370973,0.5318,3094.7,3094.2,8.50104901]
[1768902371264,0.531,3095.0,3094.7,7.96924901]
[1768902371469,0.531,3095.0,3094.1,3.23192715]
[1768902371665,0.531,3095.0,3094.2,8.29264173]
[1768902371864,0.001,3095.1,3094.3,8.49924901]
[1768902372271,0.531,3095.3,3094.7,7.96824901]
[1768902372571,0.001,3095.5,3094.7,8.49824901]
[1768902372769,0.001,3095.5,3094.9,7.96824901]
[1768902374740,12.4487689,3095.4,3094.9,7.96824901]
[1768902375274,0.001,3095.1,3094.9,7.96824901]
[1768902375984,12.4489689,3095.1,3094.8,0.8498249]
[1768902376140,12.4489689,3095.1,3094.5,11.19978235]
[1768902376346,12.4489689,3095.1,3094.5,7.96824901]
[1768902377657,12.4489689,3095.1,3094.4,7.97024901]
[1768902380602,12.4489689,3095.1,3094.4,0.002]
[1768902380764,12.4479689,3095.0,3094.4,0.002]
[1768902380965,12.4479689,3094.9,3094.4,0.002]
[1768902381275,12.4479689,3094.7,3094.4,0.002]
[1768902386686,0.531,3094.8,3094.4,0.002]
[1768902386867,13.51165978,3094.8,3094.4,0.002]
[1768902387701,13.51165978,3094.8,3094.4,7.97024901]
[1768902387900,13.51165978,3094.8,3094.7,0.002]
[1768902391536,0.531,3094.8,3094.7,0.002]
[1768902391902,0.531,3094.8,3094.7,7.97024901]
[1768902392816,0.001,3095.1,3094.7,8.76727391]
[1768902394238,12.98165978,3095.1,3094.7,8.76727391]
[1768902394440,12.98165978,3095.1,3094.7,7.97024901]
[1768902396833,12.98165978,3095.1,3094.7,0.002]
[1768902397033,12.98065978,3095.2,3094.7,7.97024901]
[1768902397234,12.98065978,3095.2,3094.8,8.76527391]
[1768902397649,12.98065978,3095.2,3094.8,0.7970249]
[1768902397835,12.98065978,3095.2,3094.7,0.002]
[1768902399259,13.51165978,3095.2,3094.7,0.002]
[1768902400052,13.51165978,3095.2,3095.0,0.002]
[1768902401843,13.51165978,3095.2,3094.7,7.97024901]
[1768902402345,13.51165978,3095.2,3094.7,0.002]
[1768902403713,13.51165978,3095.2,3094.0,0.002]
[1768902403714,12.10391232,3094.9,3094.0,0.002]
[1768902403914,0.531,3094.8,3094.0,7.97224901]
[1768902404111,12.10391232,3094.7,3094.0,7.97224901]
[1768902406568,12.10391232,3094.7,3094.0,0.002]
[1768902406883,12.10391232,3094.7,3094.0,7.97224901]
[1768902407284,12.10391232,3094.7,3094.0,9.09269576]
[1768902410487,0.531,3094.8,3094.1,7.97024901]
[1768902410654,12.10391232,3095.1,3094.1,7.97024901]
[1768902411665,12.10391232,3095.1,3094.1,8.50024901]
[1768902412599,12.10391232,3095.0,3094.1,7.97024901]
[1768902412773,12.10391232,3095.0,3094.3,0.002]
[1768902413589,3.23109337,3095.0,3094.3,0.002]
[1768902413890,12.6585565,3094.9,3094.3,0.002]
[1768902414100,12.6585565,3094.7,3094.3,0.002]
[1768902415458,12.6585565,3094.7,3094.3,7.97224901]
[1768902415664,0.531,3094.8,3094.3,7.97224901]
[1768902416098,13.1895565,3094.8,3094.3,7.97224901]
[1768902418591,13.1895565,3094.8,3094.3,0.002]
[1768902418918,12.6585565,3094.7,3094.3,0.002]
[1768902419916,12.6585565,3094.7,3094.0,7.97224901]
[1768902421889,12.6585565,3094.5,3094.0,0.002]
[1768902422251,12.6585565,3094.3,3094.0,0.002]
[1768902422385,12.6585565,3094.3,3093.7,0.002]
[1768902423087,12.6585565,3094.2,3093.7,0.002]
[1768902423482,12.6585565,3094.2,3093.4,7.97224901]
[1768902423713,12.6585565,3094.2,3093.4,0.002]
[1768902424899,12.6585565,3094.2,3093.4,7.97224901]
[1768902425306,12.6585565,3094.1,3094.0,0.002]
[1768902425509,12.6585565,3094.1,3093.4,0.002]
[1768902425699,12.6585565,3093.7,3093.1,0.002]
[1768902425895,12.6585565,3093.5,3093.1,0.002]
[1768902428891,13.1895565,3093.6,3093.1,7.97224901]
[1768902429122,0.531,3093.6,3093.1,7.97224901]
[1768902429336,13.1895565,3093.6,3093.1,0.002]
[1768902429732,12.6585565,3093.5,3093.1,0.002]
[1768902430103,12.6585565,3093.5,3092.9,0.002]
[1768902431437,12.6585565,3093.4,3092.9,0.002]
[1768902435909,0.531,3093.6,3092.9,7.99640979]
[1768902436103,0.531,3093.6,3092.9,7.97224901]
[1768902436435,0.531,3093.6,3093.1,7.97024901]
[1768902436863,13.1895565,3093.6,3093.2,0.002]
[1768902439242,13.1895565,3093.6,3093.2,7.97224901]
[1768902441970,13.1895565,3093.6,3092.9,0.002]
[1768902441971,0.08918311,3093.2,3093.0,7.97024901]
[1768902442834,12.6585565,3093.1,3092.9,0.002]
[1768902445768,0.08918311,3093.2,3092.9,0.002]
[1768902446488,0.08918311,3093.2,3092.9,7.97224901]
[1768902449337,0.08918311,3093.2,3092.9,0.002]
[1768902449544,12.30618732,3093.2,3092.9,0.002]
[1768902450344,0.08918311,3093.2,3092.9,7.97224901]
[1768902450551,0.001,3093.3,3093.0,8.00258008]
[1768902450862,0.531,3093.6,3093.1,7.97024901]
[1768902451228,12.74800421,3093.6,3092.9,8.76987391]
[1768902451433,12.74800421,3093.6,3092.8,0.002]
[1768902451434,5.52348653,3093.4,3092.8,0.002]
[1768902451773,12.21700421,3093.3,3092.8,0.002]
[1768902451959,12.21700421,3093.1,3092.8,0.002]
[1768902452563,12.21700421,3093.1,3092.7,0.002]
[1768902454040,12.21700421,3093.1,3092.5,0.002]
[1768902455938,12.21700421,3093.1,3092.5,7.97224901]
[1768902458762,12.21700421,3092.9,3092.5,0.002]
[1768902459980,12.21700421,3092.7,3092.5,0.002]
[1768902460745,12.21700421,3092.7,3092.2,7.97024901]
[1768902462262,12.75000421,3092.8,3092.2,7.97024901]
[1768902462463,12.75000421,3092.8,3092.2,8.76783391]
[1768902463054,0.533,3092.8,3092.2,8.76783391]
[1768902463361,0.533,3092.8,3092.1,0.002]
[1768902463362,12.21700421,3092.7,3092.1,0.002]
[1768902463565,0.08986966,3092.2,3092.1,0.002]
[1768902464085,0.08986966,3092.2,3091.9,7.97024901]
[1768902465783,0.08986966,3092.2,3091.8,7.97224901]
[1768902469170,0.0008,3092.4,3091.9,7.97024901]
[1768902469372,0.0008,3092.7,3092.1,7.97024901]
[1768902471286,0.0008,3092.7,3092.2,7.97024901]
[1768902472483,12.19688708,3092.6,3092.2,7.97024901]
[1768902472698,12.19688708,3092.6,3092.1,0.531]
[1768902473008,12.19688708,3092.6,3092.1,8.50124901]
[1768902473176,12.19688708,3092.6,3092.1,9.67479433]
[1768902473382,0.0008,3092.7,3092.1,9.67479433]
[1768902473698,0.0008,3092.7,3092.4,0.002]
[1768902473903,11.8943537,3092.8,3092.4,0.002]
[1768902474074,0.001,3092.8,3092.5,7.97024901]
[1768902475101,11.8943537,3092.8,3092.4,0.002]
[1768902475684,0.001,3092.8,3092.4,7.91824901]
[1768902476016,0.532,3093.1,3092.5,7.91624901]
[1768902476588,12.4253537,3093.1,3092.5,7.91624901]
[1768902477716,0.532,3093.1,3092.5,7.91624901]
[1768902478118,0.532,3093.1,3092.6,7.91624901]
[1768902478587,11.8933537,3093.2,3092.6,7.91624901]
[1768902479523,12.4253537,3093.4,3092.7,7.91624901]
[1768902481807,12.4253537,3093.4,3092.6,1.19436757]
[1768902482005,12.4253537,3093.4,3092.5,7.91624901]
[1768902482423,12.4253537,3093.4,3092.4,0.533]
[1768902482724,11.8933537,3093.3,3092.4,0.533]
[1768902483122,11.8933537,3093.3,3092.5,7.91624901]
[1768902483999,12.4253537,3093.4,3092.5,7.91624901]
[1768902484208,12.4253537,3093.4,3092.7,7.91624901]
[1768902485100,0.001,3093.8,3092.8,7.98074839]
[1768902485300,12.4263537,3093.8,3093.0,7.98074839]
[1768902485550,11.88835963,3093.7,3093.2,7.98074839]
[1768902486342,11.88835963,3093.7,3092.9,7.98574246]
[1768902486506,11.88835963,3093.7,3093.1,7.98574246]
[1768902488429,11.88835963,3093.7,3093.0,9.10764831]
[1768902489652,0.533,3093.8,3093.2,7.98574246]
[1768902489653,0.001,3093.8,3093.2,7.98574246]
[1768902489801,11.8933537,3094.3,3093.3,7.98574246]
[1768902490003,11.8933537,3094.5,3093.6,7.98574246]
[1768902490318,11.86348653,3095.6,3093.9,7.98574246]
[1768902490319,12.4253537,3094.7,3093.9,7.98574246]
[1768902490512,0.532,3094.7,3093.9,7.98574246]
[1768902491453,11.8933537,3095.3,3094.2,7.98574246]
[1768902491609,12.4253537,3095.3,3094.4,7.98574246]
[1768902491810,12.4253537,3095.3,3094.6,7.98574246]
[1768902492533,0.001,3095.5,3094.7,8.51574246]
[1768902494302,11.8933537,3096.0,3095.1,7.98394246]
[1768902494512,11.8933537,3096.0,3095.2,0.53]
[1768902494840,11.8933537,3096.0,3094.8,3.23120485]
[1768902495138,11.8933537,3096.0,3094.9,0.53]
[1768902496436,12.4253537,3095.9,3094.5,8.83561671]
[1768902496652,12.4253537,3095.9,3094.7,0.53]
[1768902497039,12.4253537,3095.9,3094.5,7.98394246]
[1768902498149,11.8933537,3095.5,3094.5,7.98394246]
[1768902498345,11.8933537,3095.5,3094.7,7.98394246]
[1768902499142,11.8933537,3095.5,3094.8,7.98394246]
[1768902500942,0.001,3095.6,3094.8,7.98394246]
[1768902501150,0.001,3095.6,3094.9,7.98394246]
[1768902501653,11.8943537,3095.6,3094.9,7.98394246]
[1768902502023,11.8943537,3095.6,3094.7,0.53]
[1768902502252,11.8933537,3095.5,3094.7,8.51394246]
[1768902502752,11.8933537,3095.5,3094.8,11.21516314]
[1768902502943,11.8933537,3095.5,3094.9,7.98394246]
[1768902504451,0.001,3095.6,3095.0,7.98394246]
[1768902504861,12.86539598,3096.1,3095.2,7.98394246]
[1768902505051,12.86539598,3096.1,3095.2,8.83533671]
[1768902505728,12.86539598,3096.1,3095.3,7.98394246]
[1768902507860,0.531,3096.2,3095.5,7.98394246]
[1768902508228,13.39639598,3096.2,3095.5,7.98394246]
[1768902508624,13.39639598,3096.2,3095.3,7.98394246]
[1768902509358,12.86539598,3096.1,3095.1,3.76086308]
[1768902509561,12.86539598,3096.1,3095.1,11.74480554]
[1768902509759,12.86539598,3096.0,3094.8,3.2311981]
[1768902510065,12.86539598,3096.0,3095.0,3.23097114]
[1768902510362,12.86539598,3096.0,3095.1,3.23090948]
[1768902510664,12.86539598,3096.0,3095.1,11.21685194]
[1768902510861,0.001,3095.9,3095.1,11.21685194]
[1768902511066,12.86539598,3095.8,3095.1,11.21685194]
[1768902511235,12.86539598,3095.8,3095.1,7.98594246]
[1768902511432,12.86539598,3095.8,3095.1,0.002]
[1768902511966,13.39639598,3095.8,3095.1,0.002]
[1768902512541,12.86539598,3095.7,3095.1,0.002]
[1768902513766,12.86539598,3095.7,3094.0,3.8]
[1768902513767,12.86539598,3095.7,3093.8,7.98394246]
[1768902513968,12.86539598,3095.5,3093.9,1.17839425]
[1768902514133,12.86539598,3095.3,3093.8,7.98394246]
[1768902514863,12.86539598,3095.3,3093.7,0.53]
[1768902515072,12.86539598,3095.3,3093.9,7.98394246]
[1768902516063,12.86539598,3095.1,3093.6,3.23246029]
[1768902516267,12.86539598,3094.9,3093.6,3.76246029]
[1768902516467,12.86539598,3094.7,3093.6,3.76247857]
[1768902517035,12.86539598,3094.5,3093.6,3.76247857]
[1768902517258,12.86539598,3094.5,3093.7,3.23232117]
[1768902517459,12.86539598,3094.5,3093.8,3.23223389]
[1768902517871,12.86539598,3094.5,3093.7,11.21626833]
[1768902518050,12.86539598,3094.5,3093.7,12.71434249]
[1768902521860,12.86539598,3094.5,3093.8,7.98394246]
[1768902522673,12.86539598,3094.5,3094.0,0.002]
[1768902530273,13.08607628,3094.7,3094.0,8.01826308]
[1768902530484,13.08607628,3094.7,3094.0,9.43420151]
[1768902532304,13.08607628,3094.7,3094.0,12.66616857]
[1768902532462,0.532,3094.7,3094.1,7.98394246]
[1768902533309,12.53611268,3095.0,3094.1,7.98394246]
[1768902533465,0.001,3095.0,3094.3,7.98394246]
[1768902534395,12.53611268,3095.0,3094.3,7.98394246]
[1768902534798,12.53611268,3095.0,3094.3,7.98594246]
[1768902536207,0.001,3095.0,3094.4,7.98394246]
[1768902536407,0.001,3095.0,3094.6,7.98394246]
[1768902536600,12.53611268,3095.0,3094.6,7.98394246]
[1768902537313,12.53511268,3095.3,3094.8,7.98394246]
[1768902537476,0.532,3095.5,3094.8,7.98394246]
[1768902537682,13.06711268,3095.6,3095.0,7.98394246]
[1768902539109,13.06711268,3095.6,3095.0,3.23096581]
[1768902539413,13.06711268,3095.6,3095.1,7.98394246]
[1768902540201,12.53511268,3095.8,3095.1,7.98394246]
[1768902540782,12.53611268,3095.9,3095.1,7.98394246]
[1768902540987,12.53611268,3095.9,3095.3,7.98394246]
[1768902542192,12.53611268,3095.9,3095.2,1.44459598]
[1768902543141,12.53611268,3095.9,3095.2,9.42853844]
[1768902544023,12.53611268,3095.9,3095.0,8.51394246]
[1768902544593,12.53611268,3095.9,3094.9,8.78233671]
[1768902544794,12.53611268,3095.9,3094.9,9.31233671]
[1768902545027,12.53611268,3095.9,3094.9,1.32839425]
[1768902545228,12.53611268,3095.9,3094.9,12.54342646]
[1768902545426,12.53611268,3095.9,3095.1,11.21483533]
[1768902545669,12.53611268,3095.9,3095.0,1.25434265]
[1768902546007,12.53511268,3095.7,3094.9,0.53]
[1768902546211,12.53511268,3095.5,3094.9,0.53]
[1768902546607,12.53511268,3095.5,3094.4,3.8]
[1768902546934,12.53511268,3095.5,3094.4,11.78394246]
[1768902547232,12.53511268,3095.5,3094.5,3.2314689]
[1768902547424,12.53511268,3095.5,3094.5,13.09332518]
[1768902548104,12.53511268,3095.5,3094.5,9.86185628]
[1768902549423,12.53511268,3095.5,3094.6,7.98394246]
[1768902550062,12.53511268,3095.5,3094.7,7.98394246]
[1768902551869,12.53511268,3095.5,3094.5,10.39185628]